[Event "*** Titled Tuesday Blitz"]
[Site "Chess.com"]
[Date "2020.11.24"]
[Round "9"]
[White "keepitcool9499"]
[Black "TST2014"]
[Result "1-0"]
[WhiteElo "2633"]
[BlackElo "2515"]
[TimeControl "180+1"]
[EndTime "12:04:42 PST"]
[Termination "keepitcool9499 won by resignation"]

1. d4 {[%clk 0:03:00.9]} 1... Nf6 {[%clk 0:02:59.2]} 2. c4 {[%clk 0:03:01.1]}
2... c5 {[%clk 0:02:58.1]} 3. Nc3 {[%clk 0:03:00.9]} 3... cxd4 {[%clk
0:02:57.5]} 4. Qxd4 {[%clk 0:03:01.8]} 4... Nc6 {[%clk 0:02:57.1]} 5. Qd1 {[%clk
0:03:02.7]} 5... e6 {[%clk 0:02:51.3]} 6. Nf3 {[%clk 0:03:03.6]} 6... Bb4 {[%clk
0:02:49.2]} 7. Bd2 {[%clk 0:03:02.3]} 7... d5 {[%clk 0:02:48.5]} 8. e3 {[%clk
0:03:00.8]} 8... O-O {[%clk 0:02:44]} 9. a3 {[%clk 0:02:58.1]} 9... Be7 {[%clk
0:02:40.2]} 10. cxd5 {[%clk 0:02:55.7]} 10... exd5 {[%clk 0:02:38.6]} 11. Be2
{[%clk 0:02:55.5]} 11... Bg4 {[%clk 0:02:34.5]} 12. O-O {[%clk 0:02:44.4]} 12...
a6 {[%clk 0:02:34.5]} 13. Nd4 {[%clk 0:02:43.3]} 13... Bxe2 {[%clk 0:02:27.2]}
14. Ncxe2 {[%clk 0:02:44.2]} 14... Ne5 {[%clk 0:02:23.7]} 15. Qb3 {[%clk
0:02:35.6]} 15... Nc4 {[%clk 0:02:19.1]} 16. Bc3 {[%clk 0:02:34.8]} 16... b5
{[%clk 0:02:18.3]} 17. Rad1 {[%clk 0:02:32.3]} 17... Rc8 {[%clk 0:02:15.3]} 18.
Nf5 {[%clk 0:02:27.5]} 18... Nb6 {[%clk 0:01:36.6]} 19. Nxe7+ {[%clk 0:02:24.1]}
19... Qxe7 {[%clk 0:01:36]} 20. Bb4 {[%clk 0:02:24.5]} 20... Qe5 {[%clk
0:01:28.1]} 21. Bxf8 {[%clk 0:02:22.4]} 21... Rxf8 {[%clk 0:01:29]} 22. Nf4
{[%clk 0:02:09]} 22... Nc4 {[%clk 0:01:25.2]} 23. Rd4 {[%clk 0:02:04.7]} 23...
g5 {[%clk 0:01:14.4]} 24. Nd3 {[%clk 0:01:59.1]} 24... Qf5 {[%clk 0:01:06.6]}
25. Ne1 {[%clk 0:01:48.7]} 25... Ne4 {[%clk 0:01:04.5]} 26. Nf3 {[%clk
0:01:46.8]} 26... g4 {[%clk 0:01:02.7]} 27. Nh4 {[%clk 0:01:46.7]} 27... Qg5
{[%clk 0:01:02.7]} 28. g3 {[%clk 0:01:47]} 28... Ned2 {[%clk 0:00:56.6]} 29. Qd3
{[%clk 0:01:34.5]} 29... Nxf1 {[%clk 0:00:52.6]} 30. Rxd5 {[%clk 0:01:34.7]}
30... Ne5 {[%clk 0:00:44.4]} 31. Kxf1 {[%clk 0:01:30.6]} 31... Nxd3 {[%clk
0:00:42.9]} 32. Rxg5+ {[%clk 0:01:31]} 32... Kh8 {[%clk 0:00:43.6]} 33. a4
{[%clk 0:01:27.2]} 33... b4 {[%clk 0:00:41.5]} 34. Rxg4 {[%clk 0:01:23.1]} 34...
a5 {[%clk 0:00:39.3]} 35. Rg5 {[%clk 0:01:21.7]} 35... Ra8 {[%clk 0:00:38.2]}
36. b3 {[%clk 0:01:15.5]} 36... Nc1 {[%clk 0:00:36.8]} 37. Rb5 {[%clk
0:01:13.6]} 37... Nxb3 {[%clk 0:00:36.2]} 38. Nf3 {[%clk 0:01:14]} 38... Nc1
{[%clk 0:00:31.5]} 39. Nd4 {[%clk 0:01:13.3]} 39... Na2 {[%clk 0:00:29.2]} 40.
Nb3 {[%clk 0:01:08]} 40... Nc3 {[%clk 0:00:28.5]} 41. Rxa5 {[%clk 0:01:07.9]}
41... Rxa5 {[%clk 0:00:24.8]} 42. Nxa5 {[%clk 0:01:08.8]} 42... Nxa4 {[%clk
0:00:25.3]} 43. Ke2 {[%clk 0:01:07.2]} 43... Nc5 {[%clk 0:00:25.3]} 44. Nc4
{[%clk 0:01:05.3]} 44... Kg7 {[%clk 0:00:20.1]} 45. f3 {[%clk 0:01:02.1]} 45...
h5 {[%clk 0:00:19.8]} 46. e4 {[%clk 0:01:01.5]} 46... f5 {[%clk 0:00:17.3]} 47.
exf5 {[%clk 0:01:01.1]} 47... Kf6 {[%clk 0:00:17.4]} 48. g4 {[%clk 0:01:01.4]}
48... h4 {[%clk 0:00:16]} 49. h3 {[%clk 0:01:01.1]} 49... b3 {[%clk 0:00:15.1]}
50. Ke3 {[%clk 0:00:58.6]} 50... Na4 {[%clk 0:00:14.4]} 51. f4 {[%clk
0:00:45.8]} 51... b2 {[%clk 0:00:12.1]} 52. Nxb2 {[%clk 0:00:36.5]} 52... Nxb2
{[%clk 0:00:13]} 53. Ke4 {[%clk 0:00:37.4]} 53... Nd1 {[%clk 0:00:12.6]} 54. g5+
{[%clk 0:00:37.7]} 54... Kf7 {[%clk 0:00:13]} 55. Kf3 {[%clk 0:00:38.2]} 55...
Nc3 {[%clk 0:00:11.5]} 56. Kg4 {[%clk 0:00:38.4]} 56... Ne2 {[%clk 0:00:11.4]}
57. Kxh4 {[%clk 0:00:38.8]} 57... Nxf4 {[%clk 0:00:11.3]} 58. Kg4 {[%clk
0:00:39.7]} 58... Nd5 {[%clk 0:00:10.5]} 59. h4 {[%clk 0:00:40]} 59... Ne3+
{[%clk 0:00:10.6]} 60. Kf4 {[%clk 0:00:40.4]} 60... Ng2+ {[%clk 0:00:10.8]} 61.
Kg3 {[%clk 0:00:39.9]} 61... Ne3 {[%clk 0:00:10.9]} 62. f6 {[%clk 0:00:14]}
62... Kg6 {[%clk 0:00:10]} 63. h5+ {[%clk 0:00:12.3]} 63... Kf7 {[%clk
0:00:09.8]} 64. Kh3 {[%clk 0:00:11.3]} 64... Ke6 {[%clk 0:00:09.4]} 65. h6
{[%clk 0:00:09.8]} 65... Nd5 {[%clk 0:00:09.6]} 66. Kg3 {[%clk 0:00:07.8]} 66...
Kf7 {[%clk 0:00:09.4]} 67. h7 {[%clk 0:00:06.1]} 67... Ne3 {[%clk 0:00:04.8]}
68. h8=Q {[%clk 0:00:05.7]} 68... Nf5+ {[%clk 0:00:05.4]} 69. Kf4 {[%clk
0:00:06]} 69... Nd4 {[%clk 0:00:05.6]} 70. Qg7+ {[%clk 0:00:06.9]} 70... Ke6
{[%clk 0:00:05.7]} 71. Qe7+ {[%clk 0:00:07.4]} 71... Kd5 {[%clk 0:00:06.4]} 72.
Qd7+ {[%clk 0:00:07.7]} 72... Kc5 {[%clk 0:00:06.4]} 73. Qxd4+ {[%clk
0:00:08.6]} 73... Kxd4 {[%clk 0:00:07.3]} 74. f7 {[%clk 0:00:09.5]} 74... Kd3
{[%clk 0:00:07.7]} 75. f8=Q {[%clk 0:00:10.4]} 75... Ke2 {[%clk 0:00:08.3]} 76.
g6 {[%clk 0:00:11.3]} 76... Kf2 {[%clk 0:00:09.2]} 77. g7 {[%clk 0:00:12.2]}
77... Kg2 {[%clk 0:00:10.1]} 78. g8=Q+ {[%clk 0:00:13.1]} 78... Kf2 {[%clk
0:00:11]} 79. Ke5+ {[%clk 0:00:12.9]} 1-0

[Event "*** Titled Tuesday Blitz"]
[Site "Chess.com"]
[Date "2020.11.24"]
[Round "9"]
[White "LPSupi"]
[Black "ZverevLev"]
[Result "1/2-1/2"]
[WhiteElo "2892"]
[BlackElo "2323"]
[TimeControl "180+1"]
[EndTime "12:04:42 PST"]
[Termination "Game drawn by repetition"]

1. e4 {[%clk 0:02:59.8]} 1... e5 {[%clk 0:02:58.6]} 2. Nf3 {[%clk 0:02:59.4]}
2... Nc6 {[%clk 0:02:58]} 3. Bc4 {[%clk 0:02:53.8]} 3... Bc5 {[%clk 0:02:56.1]}
4. c3 {[%clk 0:02:45.7]} 4... Nf6 {[%clk 0:02:55.6]} 5. d3 {[%clk 0:02:45.4]}
5... d6 {[%clk 0:02:54.7]} 6. Nbd2 {[%clk 0:02:37.9]} 6... a6 {[%clk 0:02:50.1]}
7. Bb3 {[%clk 0:02:37.5]} 7... Ba7 {[%clk 0:02:49.7]} 8. h3 {[%clk 0:02:34]}
8... h6 {[%clk 0:02:47.9]} 9. Nf1 {[%clk 0:02:33.5]} 9... O-O {[%clk 0:02:45]}
10. g4 {[%clk 0:02:28.6]} 10... d5 {[%clk 0:02:40.4]} 11. Qe2 {[%clk 0:02:25.9]}
11... dxe4 {[%clk 0:02:36.2]} 12. dxe4 {[%clk 0:02:24.8]} 12... Nh7 {[%clk
0:02:29]} 13. Ng3 {[%clk 0:02:14.3]} 13... Na5 {[%clk 0:02:27.5]} 14. Bc2 {[%clk
0:02:06.9]} 14... Re8 {[%clk 0:02:25.1]} 15. Nf5 {[%clk 0:02:04.9]} 15... Bd7
{[%clk 0:01:44.1]} 16. b3 {[%clk 0:01:42.2]} 16... b5 {[%clk 0:01:30.8]} 17. Rg1
{[%clk 0:01:17.7]} 17... b4 {[%clk 0:01:17.6]} 18. c4 {[%clk 0:01:02.2]} 18...
Bxf5 {[%clk 0:01:12.1]} 19. gxf5 {[%clk 0:00:56.4]} 19... Kh8 {[%clk 0:01:10.8]}
20. Bd2 {[%clk 0:00:50.7]} 20... Nc6 {[%clk 0:01:08.5]} 21. O-O-O {[%clk
0:00:50.4]} 21... Qe7 {[%clk 0:00:59.9]} 22. Rg4 {[%clk 0:00:26.4]} 22... Nf6
{[%clk 0:00:51.3]} 23. Rh4 {[%clk 0:00:19]} 23... Nd4 {[%clk 0:00:49.2]} 24.
Nxd4 {[%clk 0:00:18.2]} 24... Bxd4 {[%clk 0:00:50.1]} 25. Rg1 {[%clk 0:00:12.8]}
25... Nh7 {[%clk 0:00:42.6]} 26. Rhg4 {[%clk 0:00:12.5]} 26... Rg8 {[%clk
0:00:42.5]} 27. Qf3 {[%clk 0:00:12.8]} 27... a5 {[%clk 0:00:41.5]} 28. Qg3
{[%clk 0:00:13.2]} 28... Qf6 {[%clk 0:00:39.6]} 29. h4 {[%clk 0:00:13.2]} 29...
a4 {[%clk 0:00:37.6]} 30. Bg5 {[%clk 0:00:13.2]} 30... Qb6 {[%clk 0:00:28.7]}
31. f6 {[%clk 0:00:13.7]} 31... g6 {[%clk 0:00:18]} 32. Bxh6 {[%clk 0:00:08.5]}
32... Qxf6 {[%clk 0:00:17.6]} 33. Rh1 {[%clk 0:00:06.5]} 33... Qxf2 {[%clk
0:00:16.8]} 34. Qxf2 {[%clk 0:00:04.3]} 34... Bxf2 {[%clk 0:00:17.7]} 35. Bd2
{[%clk 0:00:03.7]} 35... axb3 {[%clk 0:00:16.8]} 36. Bxb3 {[%clk 0:00:04.6]}
36... c5 {[%clk 0:00:15.4]} 37. Rg2 {[%clk 0:00:04.7]} 37... Bd4 {[%clk
0:00:15.1]} 38. Rf1 {[%clk 0:00:04.3]} 38... Ra7 {[%clk 0:00:14.4]} 39. Rg3
{[%clk 0:00:03.3]} 39... Rga8 {[%clk 0:00:13.9]} 40. Kb1 {[%clk 0:00:02.8]}
40... Nf8 {[%clk 0:00:11.9]} 41. Rgf3 {[%clk 0:00:02.2]} 41... Kg7 {[%clk
0:00:11.2]} 42. Rg3 {[%clk 0:00:03.1]} 42... Ne6 {[%clk 0:00:11.4]} 43. h5
{[%clk 0:00:03.7]} 43... Nf4 {[%clk 0:00:10.3]} 44. Rg4 {[%clk 0:00:03.6]} 44...
Ra6 {[%clk 0:00:07.7]} 45. hxg6 {[%clk 0:00:03.4]} 45... Rxg6 {[%clk 0:00:03.3]}
46. Rxg6+ {[%clk 0:00:02.9]} 46... fxg6 {[%clk 0:00:02.2]} 47. Bxf4 {[%clk
0:00:03]} 47... exf4 {[%clk 0:00:01.7]} 48. Rxf4 {[%clk 0:00:03.2]} 48... Rf8
{[%clk 0:00:02.1]} 49. Rg4 {[%clk 0:00:03.8]} 49... Rf2 {[%clk 0:00:01]} 50. Kc1
{[%clk 0:00:04]} 50... Rb2 {[%clk 0:00:01.7]} 51. e5 {[%clk 0:00:03.3]} 51...
Rf2 {[%clk 0:00:02.6]} 52. e6 {[%clk 0:00:03.4]} 52... Rf5 {[%clk 0:00:03.3]}
53. Re4 {[%clk 0:00:03.3]} 53... Re5 {[%clk 0:00:04.2]} 54. Rxe5 {[%clk
0:00:03.8]} 54... Bxe5 {[%clk 0:00:04.5]} 55. Ba4 {[%clk 0:00:04.4]} 55... Kf6
{[%clk 0:00:04.2]} 56. e7 {[%clk 0:00:04.5]} 56... Kxe7 {[%clk 0:00:05.1]} 57.
Kc2 {[%clk 0:00:05]} 57... g5 {[%clk 0:00:05.5]} 58. Kd3 {[%clk 0:00:05.5]}
58... g4 {[%clk 0:00:06.4]} 59. Ke4 {[%clk 0:00:05.8]} 59... g3 {[%clk
0:00:07.3]} 60. Kf3 {[%clk 0:00:05.3]} 60... Kd6 {[%clk 0:00:06.3]} 61. Kg2
{[%clk 0:00:05.8]} 61... Bf4 {[%clk 0:00:05.7]} 62. Bd1 {[%clk 0:00:05.7]} 62...
Ke5 {[%clk 0:00:06.4]} 63. Kf3 {[%clk 0:00:05.6]} 63... Kd4 {[%clk 0:00:05.3]}
64. Bb3 {[%clk 0:00:05.8]} 64... Bb8 {[%clk 0:00:05.3]} 65. Kg2 {[%clk
0:00:05.5]} 65... Ke3 {[%clk 0:00:05.5]} 66. Ba4 {[%clk 0:00:05.6]} 66... Kd3
{[%clk 0:00:05.8]} 67. Bb3 {[%clk 0:00:06.5]} 67... Kd4 {[%clk 0:00:05.2]} 68.
Kf3 {[%clk 0:00:06.7]} 68... Kc3 {[%clk 0:00:06.1]} 69. Kg2 {[%clk 0:00:07.6]}
69... Kd4 {[%clk 0:00:06.3]} 70. Kf3 {[%clk 0:00:08.1]} 70... Kc3 {[%clk
0:00:07.2]} 71. Kg2 {[%clk 0:00:08.9]} 71... Kd4 {[%clk 0:00:07.9]} 1/2-1/2

[Event "*** Titled Tuesday Blitz"]
[Site "Chess.com"]
[Date "2020.11.24"]
[Round "9"]
[White "Nuvas"]
[Black "GregShahade"]
[Result "0-1"]
[WhiteElo "2423"]
[BlackElo "2703"]
[TimeControl "180+1"]
[EndTime "12:04:43 PST"]
[Termination "GregShahade won by resignation"]

1. d4 {[%clk 0:02:58.5]} 1... Nf6 {[%clk 0:02:59.3]} 2. c4 {[%clk 0:02:58.7]}
2... g6 {[%clk 0:02:59.5]} 3. Nc3 {[%clk 0:02:58.8]} 3... d5 {[%clk 0:03:00.2]}
4. cxd5 {[%clk 0:02:56.8]} 4... Nxd5 {[%clk 0:03:01.1]} 5. Bd2 {[%clk
0:02:56.9]} 5... Nb6 {[%clk 0:03:00.1]} 6. Nf3 {[%clk 0:02:55.3]} 6... Bg7
{[%clk 0:02:56.3]} 7. Bf4 {[%clk 0:02:46.7]} 7... c5 {[%clk 0:02:38.3]} 8. dxc5
{[%clk 0:02:43.4]} 8... Bxc3+ {[%clk 0:02:39.1]} 9. bxc3 {[%clk 0:02:43]} 9...
Qxd1+ {[%clk 0:02:39.7]} 10. Rxd1 {[%clk 0:02:42.8]} 10... N6d7 {[%clk
0:02:24.5]} 11. e3 {[%clk 0:02:05.5]} 11... Nxc5 {[%clk 0:02:23.7]} 12. Bb5+
{[%clk 0:02:06.1]} 12... Bd7 {[%clk 0:02:21.4]} 13. Bxd7+ {[%clk 0:02:04.5]}
13... Nbxd7 {[%clk 0:02:22.3]} 14. Ke2 {[%clk 0:02:01.2]} 14... Rc8 {[%clk
0:02:10.5]} 15. Ne5 {[%clk 0:01:56.8]} 15... Nxe5 {[%clk 0:01:57.8]} 16. Bxe5
{[%clk 0:01:57.7]} 16... f6 {[%clk 0:01:58.2]} 17. Bd4 {[%clk 0:01:58]} 17...
Na4 {[%clk 0:01:58.4]} 18. Rc1 {[%clk 0:01:46.9]} 18... e5 {[%clk 0:01:51.9]}
19. Bxa7 {[%clk 0:01:39.8]} 19... Ra8 {[%clk 0:01:51.5]} 20. Bd4 {[%clk
0:01:37.3]} 20... exd4 {[%clk 0:01:48.3]} 21. cxd4 {[%clk 0:01:37.7]} 21... Kd7
{[%clk 0:01:47.7]} 22. Kd3 {[%clk 0:01:35.1]} 22... Rhc8 {[%clk 0:01:42]} 23.
Rb1 {[%clk 0:01:33.8]} 23... Rc3+ {[%clk 0:01:11.1]} 24. Kd2 {[%clk 0:01:33.9]}
24... Kc7 {[%clk 0:01:10.1]} 25. Rhc1 {[%clk 0:01:17.4]} 25... Rxc1 {[%clk
0:01:09.8]} 26. Rxc1+ {[%clk 0:01:18.3]} 26... Kd6 {[%clk 0:01:10]} 27. Rb1
{[%clk 0:01:18.4]} 27... Kc7 {[%clk 0:00:59]} 28. Rc1+ {[%clk 0:01:16.6]} 28...
Kd6 {[%clk 0:00:58.9]} 29. Rb1 {[%clk 0:01:16.8]} 29... Ra7 {[%clk 0:00:59.4]}
30. Kd3 {[%clk 0:01:01]} 30... Kc6 {[%clk 0:00:57.5]} 31. Rc1+ {[%clk
0:01:00.8]} 31... Kd7 {[%clk 0:00:54.4]} 32. Rb1 {[%clk 0:01:00.9]} 32... Kc7
{[%clk 0:00:50.2]} 33. Rc1+ {[%clk 0:01:01]} 33... Kb8 {[%clk 0:00:50.7]} 34.
Rb1 {[%clk 0:01:00]} 34... Ra6 {[%clk 0:00:49.1]} 35. Rb3 {[%clk 0:00:23.7]}
35... Nb6 {[%clk 0:00:48.1]} 36. a3 {[%clk 0:00:24.1]} 36... Kc7 {[%clk
0:00:44.3]} 37. e4 {[%clk 0:00:23.2]} 37... Nd7 {[%clk 0:00:40.5]} 38. f4 {[%clk
0:00:21.9]} 38... Rb6 {[%clk 0:00:38.6]} 39. Rc3+ {[%clk 0:00:22.2]} 39... Rc6
{[%clk 0:00:38.4]} 40. Rb3 {[%clk 0:00:19.9]} 40... Rc1 {[%clk 0:00:38.2]} 41.
g3 {[%clk 0:00:16.8]} 41... Rd1+ {[%clk 0:00:36.8]} 42. Ke3 {[%clk 0:00:16.8]}
42... Re1+ {[%clk 0:00:36.5]} 43. Kd3 {[%clk 0:00:16.7]} 43... Rh1 {[%clk
0:00:35.9]} 44. h4 {[%clk 0:00:16.6]} 44... Rg1 {[%clk 0:00:35.6]} 45. Kc4
{[%clk 0:00:16.8]} 45... Nb6+ {[%clk 0:00:34.5]} 46. Kb5 {[%clk 0:00:16.1]}
46... Rc1 {[%clk 0:00:34.2]} 47. a4 {[%clk 0:00:15.2]} 47... Nc4 {[%clk
0:00:33.6]} 48. e5 {[%clk 0:00:12]} 48... fxe5 {[%clk 0:00:30.7]} 49. dxe5
{[%clk 0:00:11.1]} 49... Nd2 {[%clk 0:00:22.7]} 50. Rd3 {[%clk 0:00:10.2]} 50...
Ne4 {[%clk 0:00:18.7]} 51. e6 {[%clk 0:00:10.6]} 51... Nd6+ {[%clk 0:00:17.3]}
52. Kb4 {[%clk 0:00:10.4]} 52... Rc4+ {[%clk 0:00:17.6]} 53. Kb3 {[%clk
0:00:09.7]} 53... Re4 {[%clk 0:00:18.2]} 54. Rc3+ {[%clk 0:00:10]} 54... Kb6
{[%clk 0:00:15.4]} 55. Rd3 {[%clk 0:00:08.8]} 55... Kc6 {[%clk 0:00:15.4]} 56.
Rc3+ {[%clk 0:00:07.2]} 56... Kd5 {[%clk 0:00:15.7]} 57. Rd3+ {[%clk 0:00:07.7]}
57... Kxe6 {[%clk 0:00:16]} 58. Rc3 {[%clk 0:00:08.6]} 58... Kd7 {[%clk
0:00:13.1]} 59. Rd3 {[%clk 0:00:08.6]} 59... h5 {[%clk 0:00:09.4]} 60. Ka2
{[%clk 0:00:07.1]} 60... Rxa4+ {[%clk 0:00:09.2]} 61. Kb3 {[%clk 0:00:07.8]}
61... Re4 {[%clk 0:00:09.8]} 62. Rc3 {[%clk 0:00:08.1]} 62... b5 {[%clk
0:00:09.9]} 63. Rd3 {[%clk 0:00:08.5]} 63... Ke6 {[%clk 0:00:10.2]} 64. Rc3
{[%clk 0:00:08.6]} 64... Nc4 {[%clk 0:00:07.6]} 65. Kb4 {[%clk 0:00:06.8]} 65...
Nd6+ {[%clk 0:00:07.8]} 66. Ka5 {[%clk 0:00:06.6]} 66... Ra4+ {[%clk 0:00:07.3]}
67. Kb6 {[%clk 0:00:06.5]} 67... Rc4 {[%clk 0:00:07.7]} 68. Re3+ {[%clk
0:00:06.2]} 68... Re4 {[%clk 0:00:08.3]} 69. Rc3 {[%clk 0:00:05.7]} 69... b4
{[%clk 0:00:08.7]} 70. Rc6 {[%clk 0:00:05.5]} 70... b3 {[%clk 0:00:06.4]} 71.
Rc1 {[%clk 0:00:04.9]} 71... b2 {[%clk 0:00:06.5]} 72. Rb1 {[%clk 0:00:05.6]}
72... Rb4+ {[%clk 0:00:06.9]} 73. Kc5 {[%clk 0:00:05.9]} 73... Rb5+ {[%clk
0:00:07.3]} 74. Kd4 {[%clk 0:00:06.5]} 74... Rb8 {[%clk 0:00:07.8]} 75. Kc3
{[%clk 0:00:07.1]} 75... Ne4+ {[%clk 0:00:07.4]} 76. Kc2 {[%clk 0:00:06.9]}
76... Nxg3 {[%clk 0:00:07.8]} 0-1

[Event "*** Titled Tuesday Blitz"]
[Site "Chess.com"]
[Date "2020.11.24"]
[Round "9"]
[White "reniite"]
[Black "lacafi"]
[Result "0-1"]
[WhiteElo "1950"]
[BlackElo "2204"]
[TimeControl "180+1"]
[EndTime "12:04:48 PST"]
[Termination "lacafi won by checkmate"]

1. e4 {[%clk 0:03:00.9]} 1... c6 {[%clk 0:02:59.4]} 2. d4 {[%clk 0:02:52.8]}
2... d5 {[%clk 0:02:59.9]} 3. exd5 {[%clk 0:02:43]} 3... cxd5 {[%clk 0:02:58.1]}
4. c4 {[%clk 0:02:43.9]} 4... Nf6 {[%clk 0:02:56.4]} 5. Nc3 {[%clk 0:02:43]}
5... Nc6 {[%clk 0:02:56.8]} 6. Nf3 {[%clk 0:02:42.6]} 6... e6 {[%clk 0:02:54.5]}
7. Bd3 {[%clk 0:02:37.2]} 7... Be7 {[%clk 0:02:54.8]} 8. O-O {[%clk 0:02:33.7]}
8... O-O {[%clk 0:02:55.3]} 9. a3 {[%clk 0:02:27.1]} 9... dxc4 {[%clk 0:02:55]}
10. Bxc4 {[%clk 0:02:27.1]} 10... a6 {[%clk 0:02:55.6]} 11. Re1 {[%clk
0:02:26.6]} 11... b5 {[%clk 0:02:55.6]} 12. Bb3 {[%clk 0:02:25.1]} 12... Bb7
{[%clk 0:02:55.4]} 13. Qd3 {[%clk 0:02:23.6]} 13... b4 {[%clk 0:02:47.9]} 14.
axb4 {[%clk 0:02:19.1]} 14... Nxb4 {[%clk 0:02:47.2]} 15. Qc4 {[%clk 0:02:10]}
15... Rc8 {[%clk 0:02:11.9]} 16. Qe2 {[%clk 0:02:08.8]} 16... Bxf3 {[%clk
0:01:57.5]} 17. Qxf3 {[%clk 0:02:06.5]} 17... Qxd4 {[%clk 0:01:57.8]} 18. Be3
{[%clk 0:01:58.9]} 18... Qg4 {[%clk 0:01:53]} 19. Qb7 {[%clk 0:01:57.8]} 19...
Bc5 {[%clk 0:01:13]} 20. h3 {[%clk 0:01:37.7]} 20... Qh4 {[%clk 0:00:58.6]} 21.
g3 {[%clk 0:01:31.8]} 21... Qxh3 {[%clk 0:00:30.8]} 22. Bxc5 {[%clk 0:01:29.6]}
22... Rxc5 {[%clk 0:00:31.7]} 23. Qg2 {[%clk 0:01:18.4]} 23... Qxg2+ {[%clk
0:00:27.9]} 24. Kxg2 {[%clk 0:01:17.6]} 24... Nd3 {[%clk 0:00:26.9]} 25. Re3
{[%clk 0:01:16.3]} 25... Nb4 {[%clk 0:00:16.9]} 26. Na4 {[%clk 0:01:11.6]} 26...
Ra5 {[%clk 0:00:15.7]} 27. Rc1 {[%clk 0:01:06.5]} 27... Nfd5 {[%clk 0:00:15.5]}
28. Re4 {[%clk 0:01:01.7]} 28... Rb5 {[%clk 0:00:15.2]} 29. Bc4 {[%clk
0:00:52.9]} 29... Ra5 {[%clk 0:00:13.7]} 30. b3 {[%clk 0:00:50.1]} 30... h6
{[%clk 0:00:12.5]} 31. Re5 {[%clk 0:00:33.6]} 31... Rc8 {[%clk 0:00:10]} 32.
Rce1 {[%clk 0:00:26]} 32... Kf8 {[%clk 0:00:09.4]} 33. Rd1 {[%clk 0:00:25.8]}
33... g6 {[%clk 0:00:05]} 34. Rh1 {[%clk 0:00:19.4]} 34... Kg7 {[%clk
0:00:05.2]} 35. Kf3 {[%clk 0:00:19.8]} 35... Kf6 {[%clk 0:00:05.3]} 36. Ree1
{[%clk 0:00:20.2]} 36... h5 {[%clk 0:00:05.5]} 37. g4 {[%clk 0:00:19.8]} 37...
hxg4+ {[%clk 0:00:05.3]} 38. Kxg4 {[%clk 0:00:20.3]} 38... Ne7 {[%clk
0:00:05.2]} 39. f4 {[%clk 0:00:19.1]} 39... Nf5 {[%clk 0:00:05]} 40. Kf3 {[%clk
0:00:16.2]} 40... Rxc4 {[%clk 0:00:05]} 41. bxc4 {[%clk 0:00:16.1]} 41... Rxa4
{[%clk 0:00:05.9]} 42. Rb1 {[%clk 0:00:16.2]} 42... Nc2 {[%clk 0:00:05.5]} 43.
Rb6 {[%clk 0:00:15.2]} 43... Ncd4+ {[%clk 0:00:05.1]} 44. Ke4 {[%clk 0:00:15.2]}
44... Rxc4 {[%clk 0:00:05.3]} 45. Kd3 {[%clk 0:00:14.5]} 45... Ra4 {[%clk
0:00:04.8]} 46. Rh7 {[%clk 0:00:13.4]} 46... a5 {[%clk 0:00:04.1]} 47. Rb7
{[%clk 0:00:13.4]} 47... Nd6 {[%clk 0:00:04.7]} 48. Rd7 {[%clk 0:00:12.8]} 48...
N4f5 {[%clk 0:00:05.1]} 49. Ra7 {[%clk 0:00:11.9]} 49... Ra3+ {[%clk 0:00:04.5]}
50. Kc2 {[%clk 0:00:11.6]} 50... a4 {[%clk 0:00:04.8]} 51. Kb2 {[%clk 0:00:12]}
51... Rb3+ {[%clk 0:00:04.8]} 52. Ka2 {[%clk 0:00:12.5]} 52... Rb4 {[%clk
0:00:04.8]} 53. Rh3 {[%clk 0:00:12.2]} 53... Rxf4 {[%clk 0:00:05]} 54. Rd3
{[%clk 0:00:12.4]} 54... Nb5 {[%clk 0:00:04.2]} 55. Rb7 {[%clk 0:00:10.8]} 55...
Nfd4 {[%clk 0:00:03.9]} 56. Rb8 {[%clk 0:00:09.7]} 56... Rf2+ {[%clk 0:00:04.1]}
57. Ka1 {[%clk 0:00:09.3]} 57... g5 {[%clk 0:00:04.4]} 58. Rb7 {[%clk
0:00:08.2]} 58... g4 {[%clk 0:00:04.1]} 59. Rg3 {[%clk 0:00:08.2]} 59... Rf4
{[%clk 0:00:04.2]} 60. Rb8 {[%clk 0:00:07.6]} 60... Kg7 {[%clk 0:00:04.1]} 61.
Rb7 {[%clk 0:00:07.4]} 61... Kg6 {[%clk 0:00:03.8]} 62. Rb6 {[%clk 0:00:07]}
62... f5 {[%clk 0:00:03.7]} 63. Ra6 {[%clk 0:00:07.1]} 63... Kg5 {[%clk
0:00:04]} 64. Kb2 {[%clk 0:00:07.1]} 64... Rf2+ {[%clk 0:00:03.8]} 65. Ka1
{[%clk 0:00:06]} 65... f4 {[%clk 0:00:04.3]} 66. Rd3 {[%clk 0:00:04.3]} 66...
Kh4 {[%clk 0:00:03.4]} 67. Rxa4 {[%clk 0:00:04.2]} 67... g3 {[%clk 0:00:02.1]}
68. Kb1 {[%clk 0:00:03.8]} 68... g2 {[%clk 0:00:01.9]} 69. Rd1 {[%clk
0:00:04.6]} 69... Rf1 {[%clk 0:00:02.1]} 70. Rxd4 {[%clk 0:00:04.4]} 70... Nxd4
{[%clk 0:00:01.8]} 71. Kc1 {[%clk 0:00:02.5]} 71... Rxd1+ {[%clk 0:00:02.7]} 72.
Kxd1 {[%clk 0:00:03.4]} 72... g1=Q+ {[%clk 0:00:03.1]} 73. Kd2 {[%clk
0:00:04.3]} 73... Qg3 {[%clk 0:00:03.4]} 74. Kc1 {[%clk 0:00:03.9]} 74... Qe3+
{[%clk 0:00:04.3]} 75. Kb2 {[%clk 0:00:04.8]} 75... f3 {[%clk 0:00:04.8]} 76.
Ka2 {[%clk 0:00:04.9]} 76... f2 {[%clk 0:00:05.7]} 77. Kb2 {[%clk 0:00:05.8]}
77... f1=Q {[%clk 0:00:06]} 78. Ka2 {[%clk 0:00:06.7]} 78... Qff2+ {[%clk
0:00:06.7]} 79. Kb1 {[%clk 0:00:05.7]} 79... Qee1# {[%clk 0:00:07.6]} 0-1